Workbook

Sheet form
A1: ID | B1: 減価償却科目ＣＤ | C1: 累計額CD | D1: 当月分 | E1: ４月－７月分 | F1: その他の月 | G1: 減価償却費総額 | H1: 固定資産額 | I1: 簿記項 | J1: 簿記目 | K1: 簿記節 | L1: 簿記略称
A2: 3 | B2: 711080-1000 | C2: 111015-1000 | E2: =$G2-$F2*8 -> 0 | F2: =ROUNDDOWN($G2/12,0) -> 0 | I2: 有形固定資産 | J2: 建物 | K2: 事務所用建物 | L2: 事務所用建物
A3: 4 | B3: 711080-1000 | C3: 111015-2000 | E3: =$G3-$F3*8 -> 0 | F3: =ROUNDDOWN($G3/12,0) -> 0 | I3: 有形固定資産 | J3: 建物 | K3: 施設用建物 | L3: 施設用建物
A4: 5 | B4: 711080-1000 | C4: 111025-1000 | E4: 0 | F4: 0 | I4: 有形固定資産 | J4: 構築物 | K4: 導水設備 | L4: 導水設備
A5: 6 | B5: 711080-1000 | C5: 111025-2000 | E5: 0 | F5: 0 | I5: 有形固定資産 | J5: 構築物 | K5: 取水設備 | L5: 取水設備
A6: 7 | B6: 711080-1000 | C6: 111025-3000 | E6: 0 | F6: 0 | I6: 有形固定資産 | J6: 構築物 | K6: えん堤 | L6: えん堤
A7: 8 | B7: 711080-1000 | C7: 111025-4000 | E7: 0 | F7: 0 | I7: 有形固定資産 | J7: 構築物 | K7: 浄水設備 | L7: 浄水設備
A8: 9 | B8: 711080-1000 | C8: 111025-5000 | E8: 0 | F8: 0 | I8: 有形固定資産 | J8: 構築物 | K8: 配水設備 | L8: 配水設備
A9: 10 | B9: 711080-1000 | C9: 111025-6000 | E9: 0 | F9: 0 | I9: 有形固定資産 | J9: 構築物 | K9: 配水管設備 | L9: 配水管設備
A10: 11 | B10: 711080-1000 | C10: 111025-7000 | E10: 0 | F10: 0 | I10: 有形固定資産 | J10: 構築物 | K10: 諸設備 | L10: 諸設備
A11: 12 | B11: 711080-1000 | C11: 111035-1000 | E11: 0 | F11: 0 | I11: 有形固定資産 | J11: 機械及び装置 | K11: 電気設備 | L11: 電気設備
A12: 13 | B12: 711080-1000 | C12: 111035-2000 | E12: 0 | F12: 0 | I12: 有形固定資産 | J12: 機械及び装置 | K12: ポンプ設備 | L12: ポンプ設備
A13: 14 | B13: 711080-1000 | C13: 111035-3000 | E13: 0 | F13: 0 | I13: 有形固定資産 | J13: 機械及び装置 | K13: 塩素滅菌設備 | L13: 塩素滅菌設備
A14: 15 | B14: 711080-1000 | C14: 111035-4000 | E14: 0 | F14: 0 | I14: 有形固定資産 | J14: 機械及び装置 | K14: 量水器 | L14: 量水器
A15: 16 | B15: 711080-1000 | C15: 111035-5000 | E15: 0 | F15: 0 | I15: 有形固定資産 | J15: 機械及び装置 | K15: 通信設備 | L15: 通信設備
A16: 17 | B16: 711080-1000 | C16: 111035-6000 | E16: 0 | F16: 0 | I16: 有形固定資産 | J16: 機械及び装置 | K16: 計装設備 | L16: 計装設備
A17: 18 | B17: 711080-1000 | C17: 111035-7000 | E17: 0 | F17: 0 | I17: 有形固定資産 | J17: 機械及び装置 | K17: その他機械装置 | L17: その他機械装置
A18: 19 | B18: 711080-1000 | C18: 111045-1000 | E18: 0 | F18: 0 | I18: 有形固定資産 | J18: 車両運搬具 | K18: 車両運搬具 | L18: 車両運搬具
A19: 20 | B19: 711080-1000 | C19: 111055-1000 | E19: 0 | F19: 0 | I19: 有形固定資産 | J19: 器具備品 | K19: 器具備品 | L19: 器具備品
A20: 21 | B20: 711080-3000 | C20: 111065-1000 | E20: 0 | F20: 0 | I20: 有形固定資産 | J20: リース資産 | K20: リース資産 | L20: リース資産
A21: 22 | B21: 711080-2000 | C21: 112010-1000 | E21: 0 | F21: 0 | I21: 無形固定資産 | J21: ダム使用権 | K21: 布目ダム使用権2 | L21: 布目ダム使用権
A22: 23 | E22: 0 | F22: 0 | K22: 布目ダム使用権
A23: 24 | B23: 711080-2000 | C23: 112010-2000 | E23: 0 | F23: 0 | I23: 無形固定資産 | J23: ダム使用権 | K23: 布目ダム（２次）使用権 | L23: 比奈知ダム使用権
A24: 25 | B24: 711080-2000 | C24: 112015-1000 | E24: 0 | F24: 0 | I24: 無形固定資産 | J24: 水利権 | K24: 上津ダム水利権 | L24: 上津ダム水利権
A25: 26 | B25: 711080-2000 | C25: 112020-1000 | E25: 0 | F25: 0 | I25: 無形固定資産 | J25: リース資産 | K25: リース資産 | L25: リース資産
A26: 27 | B26: 711080-2000 | C26: 112030-1000 | E26: 0 | F26: 0 | I26: 無形固定資産 | J26: その他無形固定資産 | K26: その他無形固定資産 | L26: その他無形固定資産

Sheet urban
A1: ID | B1: 減価償却科目ＣＤ | C1: 累計額CD | D1: 当月分 | E1: ４月－７月分 | F1: その他の月 | G1: 減価償却費総額 | H1: 固定資産額 | I1: 簿記項 | J1: 簿記目 | K1: 簿記節 | L1: 簿記略称
A2: 3 | B2: 711080-1000 | C2: 111015-1000 | E2: =$G2-$F2*8 -> 5983122 | F2: =ROUNDDOWN($G2/12,0) -> 1495779 | G2: 17949354 | H2: 1248192762 | I2: 有形固定資産 | J2: 建物 | K2: 事務所用建物 | L2: 事務所用建物
A3: 4 | B3: 711080-1000 | C3: 111015-2000 | E3: =$G3-$F3*8 -> 16420237 | F3: =ROUNDDOWN($G3/12,0) -> 4105058 | G3: 49260701 | H3: 2961821435 | I3: 有形固定資産 | J3: 建物 | K3: 施設用建物 | L3: 施設用建物
A4: 5 | B4: 711080-1000 | C4: 111025-1000 | E4: 10502773 | F4: 2625691 | G4: 31508301 | H4: 2094542085 | I4: 有形固定資産 | J4: 構築物 | K4: 導水設備 | L4: 導水設備
A5: 6 | B5: 711080-1000 | C5: 111025-2000 | E5: 3193907 | F5: 798475 | G5: 9581707 | H5: 723828260 | I5: 有形固定資産 | J5: 構築物 | K5: 取水設備 | L5: 取水設備
A6: 7 | B6: 711080-1000 | C6: 111025-3000 | E6: 1792760 | F6: 448188 | G6: 5378264 | H6: 632836368 | I6: 有形固定資産 | J6: 構築物 | K6: えん堤 | L6: えん堤
A7: 8 | B7: 711080-1000 | C7: 111025-4000 | E7: 27601108 | F7: 6900276 | G7: 82803316 | H7: 4963620099 | I7: 有形固定資産 | J7: 構築物 | K7: 浄水設備 | L7: 浄水設備
A8: 9 | B8: 711080-1000 | C8: 111025-5000 | E8: 42342319 | F8: 10585578 | G8: 127026943 | H8: 7628031666 | I8: 有形固定資産 | J8: 構築物 | K8: 配水設備 | L8: 配水設備
A9: 10 | B9: 711080-1000 | C9: 111025-6000 | E9: 399916250 | F9: 99979061 | G9: 1199748738 | H9: 63943887887 | I9: 有形固定資産 | J9: 構築物 | K9: 配水管設備 | L9: 配水管設備
A10: 11 | B10: 711080-1000 | C10: 111025-7000 | E10: 8502276 | F10: 2125569 | G10: 25506828 | H10: 1853111706 | I10: 有形固定資産 | J10: 構築物 | K10: 諸設備 | L10: 諸設備
A11: 12 | B11: 711080-1000 | C11: 111035-1000 | E11: 30971052 | F11: 7742761 | G11: 92913140 | H11: 3970669184 | I11: 有形固定資産 | J11: 機械及び装置 | K11: 電気設備 | L11: 電気設備
A12: 13 | B12: 711080-1000 | C12: 111035-2000 | E12: 9779999 | F12: 2444997 | G12: 29339975 | H12: 1256090257 | I12: 有形固定資産 | J12: 機械及び装置 | K12: ポンプ設備 | L12: ポンプ設備
A13: 14 | B13: 711080-1000 | C13: 111035-3000 | E13: 1525060 | F13: 381263 | G13: 4575164 | H13: 462873826 | I13: 有形固定資産 | J13: 機械及び装置 | K13: 塩素滅菌設備 | L13: 塩素滅菌設備
A14: 15 | B14: 711080-1000 | C14: 111035-4000 | E14: 663758 | F14: 165939 | G14: 1991270 | H14: 774048554 | I14: 有形固定資産 | J14: 機械及び装置 | K14: 量水器 | L14: 量水器
A15: 16 | B15: 711080-1000 | C15: 111035-5000 | E15: 4059036 | F15: 1014758 | G15: 12177100 | H15: 206747440 | I15: 有形固定資産 | J15: 機械及び装置 | K15: 通信設備 | L15: 通信設備
A16: 17 | B16: 711080-1000 | C16: 111035-6000 | E16: 14650877 | F16: 3662719 | G16: 43952629 | H16: 5046118385 | I16: 有形固定資産 | J16: 機械及び装置 | K16: 計装設備 | L16: 計装設備
A17: 18 | B17: 711080-1000 | C17: 111035-7000 | E17: 64666549 | F17: 16166635 | G17: 193999629 | H17: 5430666251 | I17: 有形固定資産 | J17: 機械及び装置 | K17: その他機械装置 | L17: その他機械装置
A18: 19 | B18: 711080-1000 | C18: 111045-1000 | E18: 3310528 | F18: 827630 | G18: 9931568 | H18: 105020051 | I18: 有形固定資産 | J18: 車両運搬具 | K18: 車両運搬具 | L18: 車両運搬具
A19: 20 | B19: 711080-1000 | C19: 111055-1000 | E19: 4132937 | F19: 1033232 | G19: 12398793 | H19: 190664317 | I19: 有形固定資産 | J19: 器具備品 | K19: 器具備品 | L19: 器具備品
A20: 21 | B20: 711080-3000 | C20: 111065-1000 | E20: 0 | F20: 0 | G20: 0 | H20: 0 | I20: 有形固定資産 | J20: リース資産 | K20: リース資産 | L20: リース資産
A21: 22 | B21: 711080-2000 | C21: 112010-1000 | E21: 130831715 | F21: 32707926 | G21: 392495123 | H21: 9864022220 | I21: 無形固定資産 | J21: ダム使用権 | K21: 布目ダム使用権2 | L21: 布目ダム使用権
A22: 23 | E22: 19827770 | F22: 4956940 | G22: 59483290 | H22: 1941033718 | K22: 布目ダム使用権
A23: 24 | B23: 711080-2000 | C23: 112010-2000 | E23: 70894963 | F23: 17723739 | G23: 212684875 | H23: 6727558415 | I23: 無形固定資産 | J23: ダム使用権 | K23: 布目ダム（２次）使用権 | L23: 比奈知ダム使用権
A24: 25 | B24: 711080-2000 | C24: 112015-1000 | E24: 20199310 | F24: 5049826 | G24: 60597918 | H24: 1187981161 | I24: 無形固定資産 | J24: 水利権 | K24: 上津ダム水利権 | L24: 上津ダム水利権
A25: 26 | B25: 711080-2000 | C25: 112020-1000 | E25: 0 | F25: 0 | G25: 0 | H25: 0 | I25: 無形固定資産 | J25: リース資産 | K25: リース資産 | L25: リース資産
A26: 27 | B26: 711080-2000 | C26: 112030-1000 | E26: 0 | F26: 0 | G26: 0 | H26: 0 | I26: 無形固定資産 | J26: その他無形固定資産 | K26: その他無形固定資産 | L26: その他無形固定資産

Sheet tsuge
A1: ID | B1: 減価償却科目ＣＤ | C1: 累計額CD | D1: 当月分 | E1: ４月－７月分 | F1: その他の月 | G1: 減価償却費総額 | H1: 固定資産額 | I1: 簿記項 | J1: 簿記目 | K1: 簿記節 | L1: 簿記略称
A2: 3 | B2: 711080-1000 | C2: 111015-1000 | E2: =$G2-$F2*8 -> 0 | F2: =ROUNDDOWN($G2/12,0) -> 0 | G2: 0 | H2: 0 | I2: 有形固定資産 | J2: 建物 | K2: 事務所用建物 | L2: 事務所用建物
A3: 4 | B3: 711080-1000 | C3: 111015-2000 | E3: =$G3-$F3*8 -> 3738806 | F3: =ROUNDDOWN($G3/12,0) -> 934701 | G3: 11216414 | H3: 295913004 | I3: 有形固定資産 | J3: 建物 | K3: 施設用建物 | L3: 施設用建物
A4: 5 | B4: 711080-1000 | C4: 111025-1000 | E4: 428690 | F4: 107172 | G4: 1286066 | H4: 72749662 | I4: 有形固定資産 | J4: 構築物 | K4: 導水設備 | L4: 導水設備
A5: 6 | B5: 711080-1000 | C5: 111025-2000 | E5: 6823390 | F5: 1705847 | G5: 20470166 | H5: 624992083 | I5: 有形固定資産 | J5: 構築物 | K5: 取水設備 | L5: 取水設備
A6: 7 | B6: 711080-1000 | C6: 111025-3000 | E6: 84628 | F6: 21156 | G6: 253876 | H6: 18003322 | I6: 有形固定資産 | J6: 構築物 | K6: えん堤 | L6: えん堤
A7: 8 | B7: 711080-1000 | C7: 111025-4000 | E7: 7150567 | F7: 1787640 | G7: 21451687 | H7: 723510379 | I7: 有形固定資産 | J7: 構築物 | K7: 浄水設備 | L7: 浄水設備
A8: 9 | B8: 711080-1000 | C8: 111025-5000 | E8: 1013213 | F8: 253301 | G8: 3039621 | H8: 124038381 | I8: 有形固定資産 | J8: 構築物 | K8: 配水設備 | L8: 配水設備
A9: 10 | B9: 711080-1000 | C9: 111025-6000 | E9: 33007338 | F9: 8251834 | G9: 99022010 | H9: 2164614235 | I9: 有形固定資産 | J9: 構築物 | K9: 配水管設備 | L9: 配水管設備
A10: 11 | B10: 711080-1000 | C10: 111025-7000 | E10: 4512025 | F10: 1128005 | G10: 13536065 | H10: 398994601 | I10: 有形固定資産 | J10: 構築物 | K10: 諸設備 | L10: 諸設備
A11: 12 | B11: 711080-1000 | C11: 111035-1000 | E11: 6966511 | F11: 1741626 | G11: 20899519 | H11: 420901514 | I11: 有形固定資産 | J11: 機械及び装置 | K11: 電気設備 | L11: 電気設備
A12: 13 | B12: 711080-1000 | C12: 111035-2000 | E12: 3375364 | F12: 843840 | G12: 10126084 | H12: 187322650 | I12: 有形固定資産 | J12: 機械及び装置 | K12: ポンプ設備 | L12: ポンプ設備
A13: 14 | B13: 711080-1000 | C13: 111035-3000 | E13: 0 | F13: 0 | G13: 0 | H13: 12308473 | I13: 有形固定資産 | J13: 機械及び装置 | K13: 塩素滅菌設備 | L13: 塩素滅菌設備
A14: 15 | B14: 711080-1000 | C14: 111035-4000 | E14: 3022 | F14: 755 | G14: 9062 | H14: 2790023 | I14: 有形固定資産 | J14: 機械及び装置 | K14: 量水器 | L14: 量水器
A15: 16 | B15: 711080-1000 | C15: 111035-5000 | E15: 0 | F15: 0 | G15: 0 | H15: 0 | I15: 有形固定資産 | J15: 機械及び装置 | K15: 通信設備 | L15: 通信設備
A16: 17 | B16: 711080-1000 | C16: 111035-6000 | E16: 440015 | F16: 110002 | G16: 1320031 | H16: 51982724 | I16: 有形固定資産 | J16: 機械及び装置 | K16: 計装設備 | L16: 計装設備
A17: 18 | B17: 711080-1000 | C17: 111035-7000 | E17: 7582098 | F17: 1895523 | G17: 22746282 | H17: 578025675 | I17: 有形固定資産 | J17: 機械及び装置 | K17: その他機械装置 | L17: その他機械装置
A18: 19 | B18: 711080-1000 | C18: 111045-1000 | E18: 0 | F18: 0 | G18: 0 | H18: 0 | I18: 有形固定資産 | J18: 車両運搬具 | K18: 車両運搬具 | L18: 車両運搬具
A19: 20 | B19: 711080-1000 | C19: 111055-1000 | E19: 0 | F19: 0 | G19: 0 | H19: 0 | I19: 有形固定資産 | J19: 器具備品 | K19: 器具備品 | L19: 器具備品
A20: 21 | B20: 711080-3000 | C20: 111065-1000 | E20: 0 | F20: 0 | I20: 有形固定資産 | J20: リース資産 | K20: リース資産 | L20: リース資産
A21: 22 | B21: 711080-2000 | C21: 112010-1000 | E21: 0 | F21: 0 | I21: 無形固定資産 | J21: ダム使用権 | K21: 布目ダム使用権2 | L21: 布目ダム使用権
A22: 23 | E22: 4420626 | F22: 1105156 | G22: 13261874 | H22: 349229365 | K22: 布目ダム使用権
A23: 24 | B23: 711080-2000 | C23: 112010-2000 | E23: 671516 | F23: 167878 | G23: 2014540 | H23: 69837406 | I23: 無形固定資産 | J23: ダム使用権 | K23: 布目ダム（２次）使用権 | L23: 比奈知ダム使用権
A24: 25 | B24: 711080-2000 | C24: 112015-1000 | E24: 5730000 | F24: 1432500 | G24: 17190000 | H24: 17190000 | I24: 無形固定資産 | J24: 水利権 | K24: 上津ダム水利権 | L24: 上津ダム水利権
A25: 26 | B25: 711080-2000 | C25: 112020-1000 | E25: 0 | F25: 0 | I25: 無形固定資産 | J25: リース資産 | K25: リース資産 | L25: リース資産
A26: 27 | B26: 711080-2000 | C26: 112030-1000 | E26: 0 | F26: 0 | I26: 無形固定資産 | J26: その他無形固定資産 | K26: その他無形固定資産 | L26: その他無形固定資産

Sheet tsukigase
A1: ID | B1: 減価償却科目ＣＤ | C1: 累計額CD | D1: 当月分 | E1: ４月－７月分 | F1: その他の月 | G1: 減価償却費総額 | H1: 固定資産額 | I1: 簿記項 | J1: 簿記目 | K1: 簿記節 | L1: 簿記略称
A2: 3 | B2: 711080-1000 | C2: 111015-1000 | E2: =$G2-$F2*8 -> 0 | F2: =ROUNDDOWN($G2/12,0) -> 0 | G2: 0 | H2: 0 | I2: 有形固定資産 | J2: 建物 | K2: 事務所用建物 | L2: 事務所用建物
A3: 4 | B3: 711080-1000 | C3: 111015-2000 | E3: =$G3-$F3*8 -> 831646 | F3: =ROUNDDOWN($G3/12,0) -> 207911 | G3: 2494934 | H3: 54857978 | I3: 有形固定資産 | J3: 建物 | K3: 施設用建物 | L3: 施設用建物
A4: 5 | B4: 711080-1000 | C4: 111025-1000 | E4: 284561 | F4: 71138 | G4: 853665 | H4: 17739372 | I4: 有形固定資産 | J4: 構築物 | K4: 導水設備 | L4: 導水設備
A5: 6 | B5: 711080-1000 | C5: 111025-2000 | E5: 2183131 | F5: 545782 | G5: 6549387 | H5: 163170802 | I5: 有形固定資産 | J5: 構築物 | K5: 取水設備 | L5: 取水設備
A6: 7 | B6: 711080-1000 | C6: 111025-3000 | E6: 278242 | F6: 69559 | G6: 834714 | H6: 24505672 | I6: 有形固定資産 | J6: 構築物 | K6: えん堤 | L6: えん堤
A7: 8 | B7: 711080-1000 | C7: 111025-4000 | E7: 2007742 | F7: 501933 | G7: 6023206 | H7: 163452016 | I7: 有形固定資産 | J7: 構築物 | K7: 浄水設備 | L7: 浄水設備
A8: 9 | B8: 711080-1000 | C8: 111025-5000 | E8: 523965 | F8: 130989 | G8: 1571877 | H8: 66750851 | I8: 有形固定資産 | J8: 構築物 | K8: 配水設備 | L8: 配水設備
A9: 10 | B9: 711080-1000 | C9: 111025-6000 | E9: 4400891 | F9: 1100221 | G9: 13202659 | H9: 407090014 | I9: 有形固定資産 | J9: 構築物 | K9: 配水管設備 | L9: 配水管設備
A10: 11 | B10: 711080-1000 | C10: 111025-7000 | E10: 2650748 | F10: 662686 | G10: 7952236 | H10: 219539661 | I10: 有形固定資産 | J10: 構築物 | K10: 諸設備 | L10: 諸設備
A11: 12 | B11: 711080-1000 | C11: 111035-1000 | E11: 334880 | F11: 83720 | G11: 1004640 | H11: 86915199 | I11: 有形固定資産 | J11: 機械及び装置 | K11: 電気設備 | L11: 電気設備
A12: 13 | B12: 711080-1000 | C12: 111035-2000 | E12: 236901 | F12: 59224 | G12: 710693 | H12: 79959007 | I12: 有形固定資産 | J12: 機械及び装置 | K12: ポンプ設備 | L12: ポンプ設備
A13: 14 | B13: 711080-1000 | C13: 111035-3000 | E13: 34981 | F13: 8745 | G13: 104941 | H13: 13825107 | I13: 有形固定資産 | J13: 機械及び装置 | K13: 塩素滅菌設備 | L13: 塩素滅菌設備
A14: 15 | B14: 711080-1000 | C14: 111035-4000 | E14: 972 | F14: 242 | G14: 2908 | H14: 939815 | I14: 有形固定資産 | J14: 機械及び装置 | K14: 量水器 | L14: 量水器
A15: 16 | B15: 711080-1000 | C15: 111035-5000 | E15: 0 | F15: 0 | G15: 0 | H15: 0 | I15: 有形固定資産 | J15: 機械及び装置 | K15: 通信設備 | L15: 通信設備
A16: 17 | B16: 711080-1000 | C16: 111035-6000 | E16: 836852 | F16: 209211 | G16: 2510540 | H16: 160839281 | I16: 有形固定資産 | J16: 機械及び装置 | K16: 計装設備 | L16: 計装設備
A17: 18 | B17: 711080-1000 | C17: 111035-7000 | E17: 2761394 | F17: 690346 | G17: 8284162 | H17: 348990963 | I17: 有形固定資産 | J17: 機械及び装置 | K17: その他機械装置 | L17: その他機械装置
A18: 19 | B18: 711080-1000 | C18: 111045-1000 | E18: 0 | F18: 0 | G18: 0 | H18: 0 | I18: 有形固定資産 | J18: 車両運搬具 | K18: 車両運搬具 | L18: 車両運搬具
A19: 20 | B19: 711080-1000 | C19: 111055-1000 | E19: 24600 | F19: 6150 | G19: 73800 | H19: 410000 | I19: 有形固定資産 | J19: 器具備品 | K19: 器具備品 | L19: 器具備品
A20: 21 | B20: 711080-3000 | C20: 111065-1000 | E20: 0 | F20: 0 | I20: 有形固定資産 | J20: リース資産 | K20: リース資産 | L20: リース資産
A21: 22 | B21: 711080-2000 | C21: 112010-1000 | E21: 0 | F21: 0 | I21: 無形固定資産 | J21: ダム使用権 | K21: 布目ダム使用権2 | L21: 布目ダム使用権
A22: 23 | E22: 0 | F22: 0 | K22: 布目ダム使用権
A23: 24 | B23: 711080-2000 | C23: 112010-2000 | E23: 0 | F23: 0 | I23: 無形固定資産 | J23: ダム使用権 | K23: 布目ダム（２次）使用権 | L23: 比奈知ダム使用権
A24: 25 | B24: 711080-2000 | C24: 112015-1000 | E24: 4877726 | F24: 1219431 | G24: 14633174 | H24: 14633175 | I24: 無形固定資産 | J24: 水利権 | K24: 上津ダム水利権 | L24: 上津ダム水利権
A25: 26 | B25: 711080-2000 | C25: 112020-1000 | E25: 0 | F25: 0 | I25: 無形固定資産 | J25: リース資産 | K25: リース資産 | L25: リース資産
A26: 27 | B26: 711080-2000 | C26: 112030-1000 | E26: 0 | F26: 0 | I26: 無形固定資産 | J26: その他無形固定資産 | K26: その他無形固定資産 | L26: その他無形固定資産

Sheet form2
A1: ID | B1: csv_id | C1: 簿記CD | D1: 収益化累計額ＣＤ | E1: 当月分 | F1: ４月－７月分 | G1: その他の月 | H1: 執行予定額 | I1: 財源の種別 | J1: 簿記目 | K1: 簿記節 | L1: 簿記略称
A2: 1 | B2: 1 | C2: 612050-1000 | D2: 361065-1000 | F2: =$H2-$G2*8 -> 0 | G2: =ROUNDDOWN($H2/12,0) -> 0 | I2: 分担金 | J2: 分担金長期前受金収益化累計額 | K2: 分担金長期前受金収益化累計額 | L2: 分担金長期前受金収益化累計額
A3: 2 | B3: 1 | C3: 612050-1000 | D3: 361055-1000 | F3: =$H3-$G3*8 -> 0 | G3: =ROUNDDOWN($H3/12,0) -> 0 | I3: 開発負担金 | J3: 開発負担金長期前受金収益化累計額 | K3: 開発負担金長期前受金収益化累計額 | L3: 開発負担金長期前受金収益化累計額
A4: 3 | B4: 1 | C4: 612050-1000 | D4: 361075-1000 | F4: 0 | G4: 0 | I4: 受託負担金 | J4: 受託負担金長期前受金収益化累計額 | K4: 受託負担金長期前受金収益化累計額 | L4: 受託負担金長期前受金収益化累計額
A5: 4 | B5: 1 | C5: 612050-1000 | D5: 361035-1000 | F5: 0 | G5: 0 | I5: 補助金 | J5: 補助金長期前受金収益化累計額 | K5: 補助金長期前受金収益化累計額 | L5: 補助金長期前受金収益化累計額
A6: 5 | B6: 1 | C6: 612050-1000 | D6: 361025-1000 | F6: 0 | G6: 0 | I6: 負担金 | J6: 負担金長期前受金収益化累計額 | K6: 負担金長期前受金収益化累計額 | L6: 負担金長期前受金収益化累計額
A7: 6 | B7: 1 | C7: 612050-1000 | D7: 361015-1000 | F7: 0 | G7: 0 | I7: 受贈財産 | J7: 受贈財産評価額長期前受金収益化累計額 | K7: 受贈財産評価額長期前受金収益化累計額 | L7: 受贈財産評価額長期前受金収益化累計額
A8: 7 | B8: 1 | C8: 612050-1000 | D8: 361045-1000 | F8: 0 | G8: 0 | I8: 一般会計補助金 | J8: 一般会計補助金長期前受金収益化累計額 | K8: 一般会計補助金長期前受金収益化累計額 | L8: 一般会計補助金長期前受金収益化累計額
A9: 8 | B9: 0
A10: 9 | B10: 1 | C10: 612050-2000 | D10: 361065-1000 | F10: =$H10-$G10*8 -> 0 | G10: =ROUNDDOWN($H10/12,0) -> 0 | I10: 分担金
A11: 10 | B11: 1 | C11: 612050-2000 | D11: 361055-1000 | F11: 0 | G11: 0 | I11: 開発負担金
A12: 11 | B12: 1 | C12: 612050-2000 | D12: 361075-1000 | F12: 0 | G12: 0 | I12: 受託負担金
A13: 12 | B13: 1 | C13: 612050-2000 | D13: 361035-1000 | F13: 0 | G13: 0 | I13: 補助金
A14: 13 | B14: 1 | C14: 612050-2000 | D14: 361025-1000 | F14: 0 | G14: 0 | I14: 負担金
A15: 14 | B15: 1 | C15: 612050-2000 | D15: 361015-1000 | F15: 0 | G15: 0 | I15: 受贈財産
A16: 15 | B16: 1 | C16: 612050-2000 | D16: 361045-1000 | F16: 0 | G16: 0 | I16: 一般会計補助金
A17: 16 | B17: 0
A18: 17 | B18: 0 | C18: 612050-1000
A19: 18 | B19: 0 | C19: 612050-2000
A20: 19 | B20: 0 | C20: 612050-3000
A21: 20 | B21: 0 | C21: 612050-4000
A22: 21 | B22: 0 | C22: 612050-5000
A23: 22 | B23: 0 | C23: 612050-6000

Sheet urban2
A1: ID | B1: csv_id | C1: 簿記CD | D1: 収益化累計額ＣＤ | E1: 当月分 | F1: ４月－７月分 | G1: その他の月 | H1: 執行予定額 | I1: 財源の種別 | J1: 簿記目 | K1: 簿記節 | L1: 簿記略称
A2: 1 | B2: 1 | C2: 612050-1000 | D2: 361065-1000 | E2: 20609485 | F2: =$H2-$G2*8 -> 82437945 | G2: =ROUNDDOWN($H2/12,0) -> 20609485 | H2: 247313825 | I2: 分担金 | J2: 分担金長期前受金収益化累計額 | K2: 分担金長期前受金収益化累計額 | L2: 分担金長期前受金収益化累計額
A3: 2 | B3: 1 | C3: 612050-1000 | D3: 361055-1000 | E3: 5871021 | F3: =$H3-$G3*8 -> 23484092 | G3: =ROUNDDOWN($H3/12,0) -> 5871021 | H3: 70452260 | I3: 開発負担金 | J3: 開発負担金長期前受金収益化累計額 | K3: 開発負担金長期前受金収益化累計額 | L3: 開発負担金長期前受金収益化累計額
A4: 3 | B4: 1 | C4: 612050-1000 | D4: 361075-1000 | E4: 11221023 | F4: 44884094 | G4: 11221023 | H4: 134652278 | I4: 受託負担金 | J4: 受託負担金長期前受金収益化累計額 | K4: 受託負担金長期前受金収益化累計額 | L4: 受託負担金長期前受金収益化累計額
A5: 4 | B5: 1 | C5: 612050-1000 | D5: 361035-1000 | E5: 1854069 | F5: 7416278 | G5: 1854069 | H5: 22248830 | I5: 補助金 | J5: 補助金長期前受金収益化累計額 | K5: 補助金長期前受金収益化累計額 | L5: 補助金長期前受金収益化累計額
A6: 5 | B6: 1 | C6: 612050-1000 | D6: 361025-1000 | E6: 10410952 | F6: 41643816 | G6: 10410952 | H6: 124931432 | I6: 負担金 | J6: 負担金長期前受金収益化累計額 | K6: 負担金長期前受金収益化累計額 | L6: 負担金長期前受金収益化累計額
A7: 6 | B7: 1 | C7: 612050-1000 | D7: 361015-1000 | E7: 16478387 | F7: 65913548 | G7: 16478387 | H7: 197740644 | I7: 受贈財産 | J7: 受贈財産評価額長期前受金収益化累計額 | K7: 受贈財産評価額長期前受金収益化累計額 | L7: 受贈財産評価額長期前受金収益化累計額
A8: 7 | B8: 1 | C8: 612050-1000 | D8: 361045-1000 | E8: 5674403 | F8: 22697619 | G8: 5674403 | H8: 68092843 | I8: 一般会計補助金 | J8: 一般会計補助金長期前受金収益化累計額 | K8: 一般会計補助金長期前受金収益化累計額 | L8: 一般会計補助金長期前受金収益化累計額
A9: 8 | B9: 0
A10: 9 | B10: 1 | C10: 612050-2000 | D10: 361065-1000 | E10: 0 | F10: =$H10-$G10*8 -> 0 | G10: =ROUNDDOWN($H10/12,0) -> 0 | H10: 0 | I10: 分担金 | J10: 分担金長期前受金収益化累計額 | K10: 分担金長期前受金収益化累計額 | L10: 分担金長期前受金収益化累計額
A11: 10 | B11: 1 | C11: 612050-2000 | D11: 361055-1000 | E11: 0 | F11: 0 | G11: 0 | H11: 0 | I11: 開発負担金 | J11: 開発負担金長期前受金収益化累計額 | K11: 開発負担金長期前受金収益化累計額 | L11: 開発負担金長期前受金収益化累計額
A12: 11 | B12: 1 | C12: 612050-2000 | D12: 361075-1000 | E12: 0 | F12: 0 | G12: 0 | H12: 0 | I12: 受託負担金 | J12: 受託負担金長期前受金収益化累計額 | K12: 受託負担金長期前受金収益化累計額 | L12: 受託負担金長期前受金収益化累計額
A13: 12 | B13: 1 | C13: 612050-2000 | D13: 361035-1000 | E13: 0 | F13: 0 | G13: 0 | H13: 0 | I13: 補助金 | J13: 補助金長期前受金収益化累計額 | K13: 補助金長期前受金収益化累計額 | L13: 補助金長期前受金収益化累計額
A14: 13 | B14: 1 | C14: 612050-2000 | D14: 361025-1000 | E14: 19016430 | F14: 76065724 | G14: 19016430 | H14: 228197164 | I14: 負担金 | J14: 負担金長期前受金収益化累計額 | K14: 負担金長期前受金収益化累計額 | L14: 負担金長期前受金収益化累計額
A15: 14 | B15: 1 | C15: 612050-2000 | D15: 361015-1000 | E15: 0 | F15: 0 | G15: 0 | H15: 0 | I15: 受贈財産 | J15: 受贈財産評価額長期前受金収益化累計額 | K15: 受贈財産評価額長期前受金収益化累計額 | L15: 受贈財産評価額長期前受金収益化累計額
A16: 15 | B16: 1 | C16: 612050-2000 | D16: 361045-1000 | E16: 0 | F16: 0 | G16: 0 | H16: 0 | I16: 一般会計補助金 | J16: 一般会計補助金長期前受金収益化累計額 | K16: 一般会計補助金長期前受金収益化累計額 | L16: 一般会計補助金長期前受金収益化累計額

Sheet tsuge2
A1: ID | B1: 簿記CD | C1: 収益化累計額ＣＤ | D1: 当月分 | E1: ４月－７月分 | F1: その他の月 | G1: 執行予定額 | H1: 財源額 | I1: 財源の種別 | J1: 簿記目 | K1: 簿記節 | L1: 簿記略称
A2: 3 | B2: 612050-3000 | C2: 361065-1000 | E2: =$G2-$F2*8 -> 82437945 | F2: =ROUNDDOWN($G2/12,0) -> 20609485 | G2: 247313825 | I2: 分担金 | J2: 分担金長期前受金収益化累計額 | K2: 分担金長期前受金収益化累計額 | L2: 分担金長期前受金収益化累計額
A3: 4 | B3: 612050-3000 | C3: 361055-1000 | E3: =$G3-$F3*8 -> 23484092 | F3: =ROUNDDOWN($G3/12,0) -> 5871021 | G3: 70452260 | I3: 開発負担金 | J3: 開発負担金長期前受金収益化累計額 | K3: 開発負担金長期前受金収益化累計額 | L3: 開発負担金長期前受金収益化累計額
A4: 5 | B4: 612050-3000 | C4: 361075-1000 | E4: 44884094 | F4: 11221023 | G4: 134652278 | I4: 受託負担金 | J4: 受託負担金長期前受金収益化累計額 | K4: 受託負担金長期前受金収益化累計額 | L4: 受託負担金長期前受金収益化累計額
A5: 6 | B5: 612050-3000 | C5: 361035-1000 | E5: 7416278 | F5: 1854069 | G5: 22248830 | I5: 補助金 | J5: 補助金長期前受金収益化累計額 | K5: 補助金長期前受金収益化累計額 | L5: 補助金長期前受金収益化累計額
A6: 7 | B6: 612050-3000 | C6: 361025-1000 | E6: 41643816 | F6: 10410952 | G6: 124931432 | I6: 負担金 | J6: 負担金長期前受金収益化累計額 | K6: 負担金長期前受金収益化累計額 | L6: 負担金長期前受金収益化累計額
A7: 8 | B7: 612050-3000 | C7: 361015-1000 | E7: 65913548 | F7: 16478387 | G7: 197740644 | I7: 受贈財産 | J7: 受贈財産評価額長期前受金収益化累計額 | K7: 受贈財産評価額長期前受金収益化累計額 | L7: 受贈財産評価額長期前受金収益化累計額
A8: 9 | B8: 612050-3000 | C8: 361045-1000 | E8: 22697619 | F8: 5674403 | G8: 68092843 | I8: 一般会計補助金 | J8: 一般会計補助金長期前受金収益化累計額 | K8: 一般会計補助金長期前受金収益化累計額 | L8: 一般会計補助金長期前受金収益化累計額
B10: 612050-4000 | C10: 361065-1000 | E10: =$G10-$F10*8 -> 0 | F10: =ROUNDDOWN($G10/12,0) -> 0 | G10: 0 | I10: 分担金
B11: 612050-4000 | C11: 361055-1000 | E11: 0 | F11: 0 | G11: 0 | I11: 開発負担金
B12: 612050-4000 | C12: 361075-1000 | E12: 0 | F12: 0 | G12: 0 | I12: 受託負担金
B13: 612050-4000 | C13: 361035-1000 | E13: 0 | F13: 0 | G13: 0 | I13: 補助金
B14: 612050-4000 | C14: 361025-1000 | E14: 76065724 | F14: 19016430 | G14: 228197164 | I14: 負担金
B15: 612050-4000 | C15: 361015-1000 | E15: 0 | F15: 0 | G15: 0 | I15: 受贈財産
B16: 612050-4000 | C16: 361045-1000 | E16: 0 | F16: 0 | G16: 0 | I16: 一般会計補助金
A21: 11 | B21: 612050-1000 | E21: 0 | F21: 0
A22: 12 | B22: 612050-2000 | E22: 0 | F22: 0
A23: 13 | B23: 612050-3000 | E23: 0 | F23: 0
A24: 14 | B24: 612050-4000 | E24: 0 | F24: 0
A25: 15 | B25: 612050-5000 | E25: 0 | F25: 0
A26: 16 | B26: 612050-6000 | E26: 0 | F26: 0
